Cogmind - Beta 15 @@@ ROGUE MODE // 2025.07.31 @ 10:06:40 Player: Aon Result: Destroyed by Y-54 Guardian with Flak Gun Performance ------------- Evolutions (3) 1500 Regions Visited (5) 1000 Robots Destroyed (30) 150 Value Destroyed (873) 873 Prototype IDs (1) 20 Alien Tech Used (0) 0 Bonus (0) 0 TOTAL SCORE: 3543 Bonus ------- None Cogmind --------- Core Integrity 0/700 Matter 90/300 Energy 100/100 System Corruption 6% Temperature Cool (6) Movement Core (50) Location -7/Factory Parts ------- > --- POWER (1) -------- (None) > --- PROPULSION (4) --- (None) > --- UTILITY (6) ------ Advanced Visual Processing Unit ECM Suite > --- WEAPON (2) ------- (None) > --- INVENTORY (5) ---- Compact Wheel Improved Terrain Scanner Melee Analysis Suite Reflective Plating Axe Peak State ------------ > --- POWER ------------ Micro Nuclear Core > --- PROPULSION ------- Armored Treads Armored Treads Carbon-fiber Leg Carbon-fiber Leg > --- UTILITY ---------- Small Storage Unit Advanced Visual Processing Unit Transmission Jammer ECM Suite Improved Light Armor Plating System Shield > --- WEAPON ----------- Gatling Laser Mini Grenade Launcher > --- INVENTORY -------- Deuterium Engine Wheel Compact Wheel Advanced Visual Processing Unit Improved Terrain Scanner Melee Analysis Suite Reflective Plating Axe [Rating: 39] Favorites ----------- Power Light Ion Engine Engine Light Ion Engine Power Core Micro Nuclear Core Propulsion Carbon-fiber Leg Treads Armored Treads Leg Carbon-fiber Leg Utility Small Storage Unit Device ECM Suite Storage Small Storage Unit Processor Advanced Visual Processing Unit Hackware System Shield Protection Improved Light Armor Plating Weapon Mini Grenade Launcher Energy Gun Gatling Laser Ballistic Gun Improved Assault Rifle Launcher Mini Grenade Launcher Slashing Weapon Axe Build | -11 -10 -9 -9 -8 -7 ------- Run | Yrd Mat Mat Min Mat Fac Slots Evolved 6 | . . 2 . 2 2 Power . | . . . . . . Propulsion 2 | . . . . . 2 Utility 4 | . . 2 . 2 . Weapon . | . . . . . . Parts Attached 32 | 6 7 7 . 6 6 Power 3 | 1 1 . . . 1 Engine 2 | 1 1 . . . . Core 1 | . . . . . 1 Reactor . | . . . . . . Propulsion 10 | 2 1 2 . 2 3 Treads 2 | . . . . . 2 Leg 8 | 2 1 2 . 2 1 Wheel . | . . . . . . Hover . | . . . . . . Flight . | . . . . . . Utility 9 | 1 1 3 . 3 1 Device 3 | . 1 1 . . 1 Storage 1 | 1 . . . . . Processor 1 | . . 1 . . . Hackware 1 | . . . . 1 . Protection 3 | . . 1 . 2 . Artifact . | . . . . . . Weapon 10 | 2 4 2 . 1 1 Energy Gun 4 | 2 1 . . . 1 Energy Cannon . | . . . . . . Ballistic Gun 2 | . 1 1 . . . Ballistic Cannon . | . . . . . . Launcher 3 | . 2 1 . . . Special Weapon . | . . . . . . Impact Weapon . | . . . . . . Slashing Weapon 1 | . . . . 1 . Piercing Weapon . | . . . . . . Special Melee Weapon . | . . . . . . Unidentified Prototypes 1 | . . 1 . . . Parts Lost 13 | . 2 . . . 11 Power 1 | . . . . . 1 Propulsion 5 | . 1 . . . 4 Utility 4 | . . . . . 4 Weapon 3 | . 1 . . . 2 Highest Loss Streak 11 | . 2 . . . 11 To Critical Strikes . | . . . . . . Average Backups 7 | 2 7 7 8 7 8 Power . | . 1 1 1 1 1 Propulsion 2 | 1 2 3 4 3 2 Utility 2 | . 1 1 2 1 3 Weapon 1 | . 2 1 1 1 1 Tool/Special . | . . . . . . Unused Backups 13 | . . 4 . . 9 Power 2 | . . 1 . . 1 Propulsion 3 | . . . . . 3 Utility 6 | . . 2 . . 4 Weapon 2 | . . 1 . . 1 Tool/Special . | . . . . . . Average Slot Usage (%) 94 | . 93 95 100 97 92 Engine 6 | . 14 11 11 9 . Core 2 | . . . . . 6 Treads 5 | . . . . . 11 Leg 19 | . 26 22 22 18 14 Device 10 | . 11 10 11 9 11 Storage 9 | . 14 11 11 9 7 Processor 6 | . . 9 11 9 7 Hackware 4 | . . . . 9 7 Protection 8 | . . 8 11 15 8 Energy Gun 4 | . 15 . . . 4 Ballistic Gun 5 | . 4 10 11 9 2 Launcher 7 | . 6 11 11 8 6 Peak Build Rating 39 | 6 9 20 20 28 39 Average Rating 24 | 4 8 17 20 26 34 On Entrance 13 | . 6 9 20 20 27 Naked Turns . | . . . . . . Heaviest Build 24 | 14 17 21 19 23 24 Greatest Support 32 | 20 20 30 30 30 32 Greatest Overweight (x) 2 | . 1 . . . 2 Average Overweight (x) . | . . . . . . Largest Inventory Capacity 8 | 8 8 8 8 8 8 Average Capacity 7 | 7 8 8 8 8 8 Most Carried 8 | 4 8 8 8 8 8 Average Carried 7 | 2 7 7 8 7 7 Final Capacity 8 | 8 8 8 8 8 5 Final Carried 8 | 4 7 8 8 8 5 Class Distribution -------------------- 72% | Mutant 27% | Infiltrator-Mutant Dominant Class ---------------- Mutant | -10/Materials Mutant | -9/Materials Mutant | -9/Mines Mutant | -8/Materials Infiltrator-Mutant | -7/Factory Resources | -11 -10 -9 -9 -8 -7 ----------- Run | Yrd Mat Mat Min Mat Fac Matter Collected 423 | 205 73 7 91 47 . Remotely . | . . . . . . Salvage Created 634 | . 178 106 40 47 263 Parts 50 | . 11 9 6 3 21 Haulers Intercepted 1 | . . 1 . . . Recyclers Shooed . | . . . . . . Parts Field Recycled . | . . . . . . Retrieved Matter . | . . . . . . Parts Self-Destructed . | . . . . . . Prevented . | . . . . . . Kills | -11 -10 -9 -9 -8 -7 ------- Run | Yrd Mat Mat Min Mat Fac Combat Hostiles Destroyed 22 | . 8 6 3 1 4 Melee 1 | . . . . 1 . Guns 4 | . 2 1 . . 1 AOE 17 | . 6 5 3 . 3 Classes Destroyed 9 | . 2 1 1 . 5 Worker 2 | . . . . . 2 Builder 2 | . . . . . 2 Tunneler 1 | . . . 1 . . Hauler 1 | . . 1 . . . Recycler 1 | . . . . . 1 Watcher 1 | . . . . . 1 Swarmer 9 | . 2 4 3 . . Grunt 12 | . 6 2 . 1 3 Hunter 1 | . . . . . 1 Best Kill Streak 10 | . 6 4 4 1 10 Combat Bots Only 6 | . 6 4 3 1 4 Max Kills in Single Turn 8 | . 1 3 3 1 8 Gunslinging . | . . . . . . Exploded 2 | . 1 2 2 . 2 Melee 1 | . . . . 1 . Uniques/NPCs Destroyed . | . . . . . . Combat | -11 -10 -9 -9 -8 -7 -------- Run | Yrd Mat Mat Min Mat Fac Hostile Shots Fired 471 | . 73 11 3 15 369 Missed 202 | . 27 1 1 5 168 Hits 269 | . 46 10 2 10 201 Projectile 269 | . 46 10 2 10 201 Critical Strikes 5 | . 1 . . . 4 Part Disruptions 1 | . . . . . 1 Damage Taken 3114 | . 478 292 18 109 2217 Core 907 | . 118 11 . 77 701 Absorbed by Shields . | . . . . . . Ignored by Resistances 14 | . . . . 14 . Core Remaining (%) 83 | 100 52 . 97 86 . Volleys Fired 22 | . 11 5 2 . 4 Largest 2 | . 2 2 2 . 2 Hottest 110 | . 80 53 53 . 110 Shots Fired 42 | . 20 10 4 . 8 Gun 24 | . 13 5 2 . 4 Cannon . | . . . . . . Launcher 18 | . 7 5 2 . 4 Special . | . . . . . . Kinetic 7 | . . 5 2 . . Thermal 4 | . . . . . 4 Explosive 18 | . 7 5 2 . 4 Electromagnetic 13 | . 13 . . . . Robot Hit Streak 5 | . 3 5 . . 3 Robot Miss Streak 2 | . 2 2 . . 2 Penetration Max . | . . . . . . Secondary Targets . | . . . . . . Shots Hit Robots 25 | . 11 6 . 4 4 Core Hits 45 | . 13 10 4 2 16 Critical Kills . | . . . . . . Critical Parts Destroyed . | . . . . . . Critical Strikes . | . . . . . . Melee Attacks 4 | . . . . 4 . Impact . | . . . . . . Slashing 4 | . . . . 4 . Piercing . | . . . . . . Sneak Attacks . | . . . . . . Combat Hostiles . | . . . . . . Follow-up Attacks . | . . . . . . Damage Inflicted 2092 | . 519 446 250 123 754 Guns 203 | . 115 32 14 . 42 Cannons . | . . . . . . Explosions 1747 | . 404 414 236 . 693 Melee 123 | . . . . 123 . Ramming 19 | . . . . . 19 Kinetic 46 | . . 32 14 . . Thermal 654 | . 48 . . . 606 Explosive 1135 | . 356 414 236 . 129 Electromagnetic 115 | . 115 . . . . Impact . | . . . . . . Slashing 123 | . . . . 123 . Piercing . | . . . . . . Highest Corruption 6 | . . . . 3 6 Average Corruption 3 | . . . . 2 4 Corruption Purged . | . . . . . . Corruption Blocked . | . . . . . . Overload Shots . | . . . . . . Overflow Damage 201 | . . 31 25 . 145 Projectiles . | . . . . . . Explosions 201 | . . 31 25 . 145 Melee . | . . . . . . Knockbacks . | . . . . . . Impact . | . . . . . . Kinetic . | . . . . . . Secondary . | . . . . . . Self-Inflicted Damage 360 | . . 187 . . 173 Shots 8 | . . 5 . . 3 Rammed 1 | . . . . . 1 Targets Rammed 8 | . . . . . 8 Kicked 7 | . . . . . 7 Crushed . | . . . . . . Highest Temperature 147 | . 147 24 . . 75 Average Temperature 48 | . 63 13 . . 36 Received Heat Transfer 819 | . 201 33 . 63 522 Siege Activations . | . . . . . . Martial Activations . | . . . . . . Shielding Activations . | . . . . . . Robots Disrupted . | . . . . . . Combat Hostiles . | . . . . . . Robots Corrupted . | . . . . . . Combat Hostiles . | . . . . . . Parts Fried . | . . . . . . Impact Corruptions . | . . . . . . Robots Melted . | . . . . . . Combat Hostiles . | . . . . . . Parts Melted . | . . . . . . Heat Transferred 550 | . 50 . . . 500 Parts Sabotaged . | . . . . . . Parts Stolen . | . . . . . . Parts Stripped . | . . . . . . Power Chain Reactions 1 | . 1 . . . . Alert | -11 -10 -9 -9 -8 -7 ------- Run | Yrd Mat Mat Min Mat Fac Maximum Alert Level 2 | . . . . . 2 Low Security (%) 79 | 100 100 100 100 100 54 Level 1 11 | . . . . . 26 Level 2 8 | . . . . . 19 Level 3 . | . . . . . . Level 4 . | . . . . . . Level 5 . | . . . . . . High Security . | . . . . . . Max Security . | . . . . . . Peak Influence 447 | . 157 156 106 33 447 Initial 48 | . . 44 48 33 . Average 106 | . 69 52 55 13 179 Influence Increases 1081 | . 227 186 88 20 560 Destroy 0b10 Robot/C 440 | . 160 120 60 20 80 Destroy 0b10 Robot/NC 40 | . . 5 5 . 30 Destroy Leader 74 | . 30 12 10 . 22 Disable Machine 300 | . 15 15 . . 270 Destroy Structure 107 | . 7 34 13 . 53 Lose Combat Pursuer 120 | . 15 . . . 105 Influence Decreases 757 | . 120 167 128 106 236 Entered New Map 194 | . . 63 78 53 . Time Decay 433 | . 100 104 50 53 126 Lost Part 130 | . 20 . . . 110 Squads Dispatched 7 | . 1 3 . 1 2 Investigation 2 | . . 2 . . . Extermination 1 | . . . . . 1 Reinforcement 4 | . 1 1 . 1 1 Assault . | . . . . . . Garrison . | . . . . . . Intercept . | . . . . . . Searches Triggered . | . . . . . . Construction Impeded . | . . . . . . Haulers Reinforced . | . . . . . . Active Scanning Responses . | . . . . . . Cargo Convoy Interrupts . | . . . . . . Stealth | -11 -10 -9 -9 -8 -7 --------- Run | Yrd Mat Mat Min Mat Fac Distress Signals 3 | . . 1 . . 2 Communications Jammed 2 | . . . . . 2 Distress Signals 2 | . . . . . 2 Times Spotted 67 | . 11 15 3 9 29 Peak Tracking Total 12 | . 8 5 3 1 12 Tactical Retreats 5 | . 1 1 . . 3 Traps | -11 -10 -9 -9 -8 -7 ------- Run | Yrd Mat Mat Min Mat Fac Traps Triggered 2 | . . . . 2 . Indirectly . | . . . . . . Trap Hack Attempts . | . . . . . . Triggered . | . . . . . . Disarmed . | . . . . . . Reprogrammed . | . . . . . . Reused . | . . . . . . Traps Extracted . | . . . . . . Installed . | . . . . . . Triggered . | . . . . . . Machines | -11 -10 -9 -9 -8 -7 ---------- Run | Yrd Mat Mat Min Mat Fac Machines Disabled 20 | . 1 1 . . 18 Max in Single Turn 18 | . 1 1 . . 18 Machines Repaired . | . . . . . . Machines Dismantled . | . . . . . . Machines Sabotaged . | . . . . . . Overloaded Fab Kills . | . . . . . . Hacking | -11 -10 -9 -9 -8 -7 --------- Run | Yrd Mat Mat Min Mat Fac Machines Accessed 4 | . 1 2 . 1 . Terminals 4 | . 1 2 . 1 . Fabricators . | . . . . . . Repair Stations . | . . . . . . Recycling Units . | . . . . . . Scanalyzers . | . . . . . . Garrison Access . | . . . . . . Total Hacks 10 | . 1 8 . 1 . Successful 2 | . . 2 . . . Failed 8 | . 1 6 . 1 . Catastrophic 2 | . . 2 . . . Database Lockouts . | . . . . . . Manual . | . . . . . . Terminals 10 | . 1 8 . 1 . Fabricators . | . . . . . . Repair Stations . | . . . . . . Recycling Units . | . . . . . . Scanalyzers . | . . . . . . Garrison Access . | . . . . . . Terminal Hacks 2 | . . 2 . . . Record 2 | . . 2 . . . Fabricator Hacks . | . . . . . . Repair Station Hacks . | . . . . . . Recycling Unit Hacks . | . . . . . . Scanalyzer . | . . . . . . Garrison Access Hacks . | . . . . . . Unauthorized Hacks . | . . . . . . Terminals . | . . . . . . Fabricators . | . . . . . . Repair Stations . | . . . . . . Recycling Units . | . . . . . . Scanalyzers . | . . . . . . Garrison Access . | . . . . . . Data Cores Recovered . | . . . . . . Used . | . . . . . . Hacking Detections 2 | . . 2 . . . Full Trace Events 2 | . . 2 . . . Feedback Events . | . . . . . . Feedback Blocked . | . . . . . . Robot Schematics Acquired . | . . . . . . Robots Built . | . . . . . . Authchips . | . . . . . . Time . | . . . . . . Total Robot Build Rating . | . . . . . . Part Schematics Acquired . | . . . . . . Parts Built . | . . . . . . Authchips . | . . . . . . Time . | . . . . . . Total Part Build Rating . | . . . . . . Parts Repaired . | . . . . . . Time . | . . . . . . Parts Recycled . | . . . . . . Recycled Matter . | . . . . . . Retrieved Matter . | . . . . . . Retrieved Components . | . . . . . . Parts Scanalyzed . | . . . . . . Part Schematics Acquired . | . . . . . . Parts Damaged . | . . . . . . Bothacking | -11 -10 -9 -9 -8 -7 ------------ Run | Yrd Mat Mat Min Mat Fac Used RIF Installer . | . . . . . . Robots Hacked . | . . . . . . Non-combat . | . . . . . . Combat . | . . . . . . Robot Hacks Applied . | . . . . . . Relay Couplers Released . | . . . . . . Fabnet Peak Effective % . | . . . . . . Robots Rewired . | . . . . . . Allies Hacked . | . . . . . . Hacks Repelled . | . . . . . . Allies | -11 -10 -9 -9 -8 -7 -------- Run | Yrd Mat Mat Min Mat Fac Total Allies . | . . . . . . Largest Group . | . . . . . . Highest-Rated Group . | . . . . . . Highest-Rated Ally . | . . . . . . Total Orders . | . . . . . . Ally Attacks . | . . . . . . Total Damage . | . . . . . . Kills . | . . . . . . Allies Corrupted . | . . . . . . Allies Melted . | . . . . . . Intel | -11 -10 -9 -9 -8 -7 ------- Run | Yrd Mat Mat Min Mat Fac Active Infowar (turns) 1092 | . . 220 112 136 624 Optics 1092 | . . 220 112 136 624 Jamming 368 | . . . . . 368 ECM 807 | . . 133 112 136 426 Robot Analysis Total . | . . . . . . Derelict Logs Recovered . | . . . . . . Drone Launches . | . . . . . . Drone Recoveries . | . . . . . . Exploration | -11 -10 -9 -9 -8 -7 ------------- Run | Yrd Mat Mat Min Mat Fac Turns Passed 1405 | 64 229 240 112 136 624 Spaces Moved 1022 | 44 149 174 87 93 475 Core 11 | 2 . . . . 9 Treads 2 | . . . . . 2 Legs 1009 | 42 149 174 87 93 464 Wheels . | . . . . . . Hover . | . . . . . . Flight . | . . . . . . Fastest Speed 50 | 50 120 120 120 120 120 Average Speed 121 | 116 122 120 120 120 123 Slowest Speed 250 | 120 190 120 120 120 250 Overloaded Moves . | . . . . . . Propulsion Burnouts . | . . . . . . Robots Hopped . | . . . . . . Potential Cave-ins . | . . . . . . Cave-ins Triggered . | . . . . . . Exploration Rate (%) 21 | 4 42 28 25 13 17 Regions Visited 5 Branch Regions 1 Pre-discovered Areas . | . . . . . . Known Exits Taken . | . . . . . . Unknown Exits Taken 5 | 1 1 1 1 1 . Scrap Searched 1 | . . . 1 . . Spaces Dug . | . . . . . . Terrain Destroyed 118 | . 8 41 17 . 52 Melee . | . . . . . . Projectile . | . . . . . . AOE 118 | . 8 41 17 . 52 Terrain Rammed . | . . . . . . Walls Destroyed . | . . . . . . Machines Disabled . | . . . . . . Actions | -11 -10 -9 -9 -8 -7 --------- Run | Yrd Mat Mat Min Mat Fac Total 1129 | 53 175 199 90 109 503 Wait 4 | . 1 . 2 . 1 Move 1017 | 43 148 173 86 92 475 Hop . | . . . . . . Pick Up 18 | 4 4 5 . 3 2 Fast Attach 20 | 6 5 4 . 1 4 Attach 2 | . 1 . . 1 . Detach 1 | . . . . . 1 Swap 11 | . 1 3 . 5 2 Drop 22 | . 4 9 . 3 6 Fire 22 | . 11 5 2 . 4 Melee 4 | . . . . 4 . Ram 1 | . . . . . 1 Kick 7 | . . . . . 7 Crush . | . . . . . . Escape Stasis . | . . . . . . Rewire . | . . . . . . Trap . | . . . . . . Miscellaneous . | . . . . . . Route ------- -11/Scrapyard -10/Materials -9/Materials -9/Mines -8/Materials -7/Factory History --------- Turn | Location | Event 21 | -11/Scrapyard | Discovered new exit (range 15) 65 | -11/Scrapyard | Entered Materials 277 | -10/Materials | Discovered new exit (range 11) 294 | -10/Materials | Entered another Materials area 294 | -9/Materials | Evolved 2 slots: Utility x2 351 | -9/Materials | Build established: Mutant 527 | -9/Materials | Discovered new exit (range 6) 534 | -9/Materials | Entered Mines 630 | -9/Mines | Discovered new exit (range 11) 646 | -9/Mines | Entered Materials 646 | -8/Materials | Evolved 2 slots: Utility x2 779 | -8/Materials | Discovered new exit (range 3) 782 | -8/Materials | Entered Factory 782 | -7/Factory | Evolved 2 slots: Propulsion x2 1236 | -7/Factory | Build established: Infiltrator-Mutant 1392 | -7/Factory | Core integrity fell below 50% 1403 | -7/Factory | Core integrity fell below 20% 1406 | -7/Factory | Destroyed by Y-54 Guardian with Flak Gun Last Messages --------------- Mic. Nuclear Core broken. Destabilizing: Short circuit. U-05 Engineer builds a Wall. U-05 Engineer lays Concrete. Broken Mic. Nuclear Core destroyed. U-05 Engineer lays Concrete. K-01 Serf cleans the Neutrino Reactor. U-05 Engineer lays Concrete. U-05 Engineer destroyed. U-05 Engineer lays Concrete. P-60 Hacker resets Y-54 Guardian, system corruption cleaned. U-05 Engineer lays Concrete. P-60 Hacker resets Y-54 Guardian, system corruption cleaned. K-01 Serf collects debris. U-05 Engineer lays Concrete. Sml. Storage Unit destroyed. System Shield destroyed. U-05 Engineer destroyed. Map ----- +----------------------------------------------------+ | ## #?#####?# !#????! #####??????????????? | | ### ### ### ??????????????? | | " " " ?????????????????? | | ### ### ### ???????????????? | | ## #?#####?# ! #??????????????????????????? | | #######???????### ###??????????????????????????? | | # #?###############+###########??????????????????? | | ##?# # #??????????????????? | | ##### """""" # """ ""#????#########?????? | | + """""" # """ T"#????# #?????? | | ##### """""" # """ ""#????# #?????? | | #???# """""" # #????#!!! #?????? | | #???# # """ """ #????#!!! #?????? | | #???# """""" # """ """ #????#!!! ####### | | #???# """""" # """ """ #????# " # | | #???# """""" # #????# = " # | | #???# """""" # ###### " # """" | | ##### # ! # + " # | | " # ]; # " # """" | | " ; ;;; ;;########+# # " # | | u + " # """" | | ## " # | | =* r # " # ! | | =%! # # !! | | !! = # [ # ! | | @! ; # | | t #####+########## | | k | | u | | | | |%! | | r Y Y a | | #####+### ###########p##############+### | | ## # #????# pg #??????????# | | ? ? """ # #????# """" """" #??????????# | | ??? ?# """ # #????# """" """" #??????????# | | ???????# ?" + #????# """" """" #??????????+ | | ???????# """ # #????# """" """" #??????????# | | ???????# ""? # #????# """ """" #??????????# | | ???????# ?# #????# """" """" #??????????# | | ???????# ?# #????# """" """" #??????????# | | ???????# !![ # #????# ############ | | ???????# !=[ # ###### [ # + | | ???????# != + / # """""" # | | ???????# # ###### # """""" # | | ???????# ! # #????############## """""" + | | ???????# ?##### #?????????????????# ["""""" # | | ???????######?????# #?????????????????# # | | ??????????????????# #?????????????????# """""" # | | ??????????????????# #?????????????????# """""" # | +----------------------------------------------------+ Best States ------------- Heat Dissipation 34 Energy Generation 15 Energy Capacity 250 Matter Stores 298 Matter Capacity 300 Sight Range 20 Terrain Scan Density 10 ECM Strength 1 Jamming Range 12 Armor Coverage 300 Resistance: TH 10 Evasion (%) 55 Defensive Hacking 10 Trap Extractor Capacity 4 Item Schematics ----------------- None Robot Schematics ------------------ None Fabricated ------------ Nothing Repaired ---------- Nothing Alien Tech Used ----------------- None Achievements -------------- It Was An Accident, I Swear Loot Pinata Challenges ------------ None Game ------ Seed CompanionNuclearSpecial Manual? 0 Play Time 00:29:20 Cumulative 6.9 hours Start 2025.07.31 @ 09:24:06 End 2025.07.31 @ 10:06:40 Sessions 4 Manual Loads 0 Difficulty Rogue Special Mode None Game No. 12 Rogue 10 Adventurer 0 Explorer 2 Win Type - Total 0 Types 0/0/0/0/0/0/0/0/0/0 Lore% 9 Gallery% 15 Achievement% 17 Wizard Run 0 Options --------- Layout 1 ASCII 0 Keyboard 0 Movement Numpad Keybinds 0 Fullscreen 1 Font 24/Smallcaps Map View 50x35 Zoom Use 0% Tactical HUD 0 Map Filters NONE Filters NONE Steam 1 RUN: 917e8d18-832c-41ec-bbbb-29ed91c1a50e